{"text_format":"1","workbook":"xlsx","n_sheets":2,"sheets":["Declaratieformulier","Vrijwilligersvergoedingen"],"not_rendered":{"charts":0,"images":1,"macros":1,"external_links":0,"defined_names":1,"comments":0,"pivot_tables":0},"unopened":[],"bounds":{"document_bytes":16777216,"sheet_cells":100000,"rows_first":2000,"rows_last":500,"rows_between":2000,"halvings":0,"cell_chars":16384,"cell_head_chars":4096},"cells_cut":0,"cells_raw":0,"read":"whole","date_system":"1900"}

{"sheet":"Declaratieformulier","index":0,"n_rows":44,"n_cols":7,"rows_kept":44,"cut":false,"hidden":false,"merged":[[19,1,19,2],[0,5,0,6],[5,5,5,6],[41,4,41,5],[10,5,10,6],[13,1,13,2],[14,1,14,2],[15,1,15,2],[16,1,16,2],[17,1,17,2],[18,1,18,2]]}
["Declaratieformulier Wyba"]
[]
["Wyba basketbalvereniging"]
["Campuslaan 14"]
["6602 HX Wijchen"]
[null,null,null,null,null,"Factuur gegevens"]
["Naam:",null,null,null,null,"Debiteurnummer:",{"$f":"B8","v":0}]
["NBB-Nummer:",null,null,null,null,"Factuurnummer:",{"$f":"B8&\"-\"&DAG(VANDAAG())&MAAND(VANDAAG())&JAAR(VANDAAG())","v":{"$error":"#NAME?"}}]
["E-Mailadres:",null,null,null,null,"Datum:",{"$f":"VANDAAG()","v":{"$error":"#NAME?"}}]
["Mobiele nummer:",null,null,null,null,"Betaaldatum:",{"$f":"G9+14","v":{"$error":"#NAME?"}}]
["IBAN:",null,null,null,null,{"$f":"\"Declaratie \"&B7","v":"Declaratie "}]
[]
["Declaratie overige kosten"]
["Datum","Omschrijving",null,"Rekening bijgevoegd",null,"Bedrag\n incl BTW"]
[]
[]
[]
[]
[]
[]
[null,null,null,"Subtotaal:",null,{"$f":"SOM(F15:F20)","v":{"$error":"#NAME?"}}]
[]
["Declaratie vaste vrijwilligersvergoedingen"]
["Datum",{"$f":"B14","v":"Omschrijving"},"Aantal","Tarief",null,{"$f":"F14","v":"Bedrag\n incl BTW"}]
[null,"Los gefloten wedstrijd met BS2-diploma (F-diploma)",null,10,null,{"$f":"D25*C25","v":0}]
[null,"Los gefloten wedstrijd met BS3 diploma (E-diploma)",null,15,null,0]
[null,"Los gefloten wedstrijd met L3 of hoger diploma (D-diploma)",null,20,null,0]
[null,"Minimaal 10 gefloten wedstrijden met BS2-diploma (F-diploma)",null,15,null,0]
[null,"Minimaal 10 gefloten wedstrijden met BS3 diploma (E-diploma)",null,20,null,0]
[null,"Minimaal 10 gefloten wedstrijden met L3 of hoger diploma (D-diploma)",null,25,null,0]
[null,"Hoofdcoach vergoeding volledig seizoen",null,600,null,0]
[null,"Hoofdcoach vergoeding half seizoen",null,300,null,0]
[null,null,null,0,null,0]
[null,null,null,0,null,0]
[null,null,null,0,null,0]
[null,null,null,0,null,0]
[null,null,null,0,null,0]
[null,null,null,0,null,0]
[null,null,null,0,null,0]
[null,null,null,"Subtotaal:",null,{"$f":"SOM(F25:F39)","v":{"$error":"#NAME?"}}]
[]
[null,null,null,"Totaal te betalen",{"$f":"F21+F40","v":{"$error":"#NAME?"}}]
[]
["Verstuur het volledig ingevulde formulier in PDF naar factuur@wyba.nl met de benodigde bijlagen."]

{"sheet":"Vrijwilligersvergoedingen","index":1,"n_rows":11,"n_cols":5,"rows_kept":11,"cut":false,"hidden":false,"merged":[]}
["Soorten en tarieven vrijwilligersvergoedingen"]
[]
["Omschrijving","Tarief"]
["Los gefloten wedstrijd met BS2-diploma (F-diploma)",10,null,null,10]
["Los gefloten wedstrijd met BS3 diploma (E-diploma)",15,null,null,15]
["Los gefloten wedstrijd met L3 of hoger diploma (D-diploma)",20,null,null,20]
["Minimaal 10 gefloten wedstrijden met BS2-diploma (F-diploma)",15,null,null,15]
["Minimaal 10 gefloten wedstrijden met BS3 diploma (E-diploma)",20,null,null,20]
["Minimaal 10 gefloten wedstrijden met L3 of hoger diploma (D-diploma)",25,null,null,25]
["Hoofdcoach vergoeding volledig seizoen",600,null,null,600]
["Hoofdcoach vergoeding half seizoen",300,null,null,300]